bitfinex/quotes_SOLUSD_20260309
["timestamp","ask_amount","ask_price","bid_price","bid_amount"]
[1773065377611,4.18989786,84.739,84.701,4.03061293]
[1773065378508,4.18989786,84.748,84.711,4.03061293]
[1773065379004,41.29452433,84.757,84.671,50.93524953]
[1773065379005,41.29452433,84.757,84.722,11.80330964]
[1773065379207,45.48442219,84.757,84.723,4.03061293]
[1773065379406,4.18989786,84.756,84.723,4.03061293]
[1773065379606,4.18989786,84.756,84.73,11.45470935]
[1773065379814,4.18989786,84.756,84.723,4.03061293]
[1773065380532,0.28432314,84.785,84.722,11.80330964]
[1773065380533,11.79765542,84.763,84.741,4.03061293]
[1773065381126,29.48976592,84.776,84.75,11.45470935]
[1773065381326,11.45470935,84.79,84.742,11.80052394]
[1773065381327,11.79523472,84.78,84.76,11.45470935]
[1773065382028,4.18989786,84.814,84.771,4.03061293]
[1773065382229,4.18989786,84.809,84.771,4.03061293]
[1773065382827,4.18989786,84.809,84.77,11.45470935]
[1773065383036,4.18989786,84.799,84.77,11.45470935]
[1773065383414,4.18989786,84.811,84.78,11.45470935]
[1773065383625,4.18989786,84.809,84.772,4.03061293]
[1773065383833,4.18989786,84.809,84.78,11.45470935]
[1773065384441,4.18989786,84.809,84.77,11.45470935]
[1773065384650,11.45470935,84.79,84.76,11.45470935]
[1773065384831,4.18989786,84.779,84.738,4.03061293]
[1773065385137,11.45470935,84.76,84.724,4.03061293]
[1773065385316,11.79815712,84.759,84.73,11.45470935]
[1773065385516,4.18989786,84.758,84.725,11.8028917]
[1773065385814,4.18989786,84.758,84.72,23.25817613]
[1773065386020,4.18989786,84.758,84.721,4.03061293]
[1773065386328,29.49230649,84.768,84.731,4.03061293]
[1773065386837,11.79676532,84.769,84.741,4.33208032]
[1773065387716,16.10622383,84.779,84.743,4.33208032]
[1773065388333,16.10622383,84.779,84.742,11.80052394]
[1773065388334,4.31084998,84.778,84.742,11.80052394]
[1773065388650,4.31084998,84.759,84.723,11.80311018]
[1773065389148,11.45470935,84.77,84.731,4.33208032]
[1773065389641,4.31084998,84.769,84.731,4.33208032]
[1773065389823,4.31084998,84.767,84.732,16.13399695]
[1773065390017,4.31084998,84.767,84.733,4.33208032]
[1773065391038,11.45470935,84.76,84.733,4.33208032]
[1773065391235,4.31084998,84.767,84.733,4.33208032]
[1773065391747,11.79718283,84.766,84.741,4.33208032]
[1773065392141,23.25137784,84.77,84.741,4.33208032]
[1773065392444,23.25137784,84.77,84.74,11.45470935]
[1773065392754,23.25137784,84.77,84.734,41.30573322]
[1773065392755,11.79608914,84.774,84.741,4.33208032]
[1773065392962,4.31084998,84.773,84.741,4.33208032]
[1773065393162,11.45470935,84.77,84.741,4.33208032]
[1773065393360,15.76555933,84.77,84.735,4.33208032]
[1773065393543,15.76555933,84.77,84.74,15.78678967]
[1773065393752,11.79537385,84.779,84.751,4.33208032]
[1773065394141,4.31084998,84.778,84.743,4.33208032]
[1773065394346,4.31084998,84.778,84.75,11.45470935]
[1773065394548,4.31084998,84.778,84.743,4.33208032]
[1773065395869,4.31084998,84.769,84.733,4.33208032]
[1773065396079,41.28478242,84.777,84.73,4.33208032]
[1773065396080,4.31084998,84.759,84.73,4.33208032]
[1773065396244,4.31084998,84.769,84.73,15.78678967]
[1773065396954,4.31084998,84.759,84.73,4.33208032]
[1773065397265,4.31084998,84.759,84.721,4.33208032]
[1773065397944,11.79829632,84.758,84.723,4.33208032]
[1773065399049,11.79829632,84.758,84.722,11.80330964]
[1773065399050,16.10775447,84.768,84.731,4.33208032]
[1773065399243,11.45470935,84.77,84.722,41.31158376]
[1773065399244,11.45470935,84.77,84.741,4.33208032]
[1773065399437,11.795664,84.777,84.722,41.31158376]
[1773065399438,11.45470935,84.76,84.731,4.33208032]
[1773065400070,11.79815712,84.759,84.732,11.80191663]
[1773065400359,4.31084998,84.784,84.751,4.33208032]
[1773065400563,11.45470935,84.78,84.751,4.33208032]
[1773065400759,11.45470935,84.78,84.741,4.33208032]
[1773065400760,4.31084998,84.779,84.741,4.33208032]
[1773065400961,4.31084998,84.769,84.732,11.80191663]
[1773065401145,11.45470935,84.76,84.731,4.33208032]
[1773065401341,4.31084998,84.759,84.722,4.33208032]
[1773065401546,4.31084998,84.749,84.713,4.33208032]
[1773065401850,11.45470935,84.74,84.713,4.33208032]
[1773065402052,4.31084998,84.729,84.695,4.33208032]
[1773065402356,41.30378341,84.738,84.685,4.33208032]
[1773065402357,4.31084998,84.719,84.685,4.33208032]
[1773065402767,4.31084998,84.719,84.69,11.45470935]
[1773065403138,4.05100369,84.729,84.691,4.08553431]
[1773065403343,11.80108097,84.738,84.711,4.08553431]
[1773065403751,15.85083141,84.747,84.72,11.45470935]
[1773065403949,4.05100369,84.746,84.71,11.45470935]
[1773065404254,11.8001062,84.745,84.712,4.08553431]
[1773065404456,41.3003717,84.745,84.712,4.08553431]
[1773065404767,41.3003717,84.745,84.7,29.51576124]
[1773065404768,11.45470935,84.73,84.702,4.08553431]
[1773065405146,4.05100369,84.729,84.692,4.08553431]
[1773065405376,4.05100369,84.709,84.67,11.45470935]
[1773065405558,4.05100369,84.699,84.671,11.81040182]
[1773065406153,11.80665423,84.698,84.67,11.45470935]
[1773065406357,11.80665423,84.698,84.662,11.81167465]
[1773065406568,4.05100369,84.689,84.66,0.1]
[1773065406750,4.05100369,84.679,84.66,0.1]
[1773065406951,15.50571304,84.69,84.66,0.1]
[1773065407170,4.05100369,84.689,84.66,0.1]
[1773065407370,11.80665423,84.698,84.671,4.08553431]
[1773065408068,11.80582688,84.704,84.68,11.45470935]
[1773065408274,11.45470935,84.69,84.661,4.08553431]
[1773065408572,15.50571304,84.69,84.66,0.1]
[1773065408762,11.45470935,84.69,84.66,0.1]
[1773065408975,4.05100369,84.689,84.66,0.1]
[1773065409347,11.45470935,84.69,84.661,4.08553431]
[1773065409553,11.45470935,84.69,84.66,11.55470935]
[1773065409554,11.80609666,84.702,84.671,4.08553431]
[1773065409757,11.45470935,84.7,84.671,4.08553431]
[1773065409961,4.05100369,84.699,84.66,15.64024366]
[1773065410156,41.32816927,84.688,84.66,0.1]
[1773065410470,4.05100369,84.687,84.66,0.1]
[1773065411072,41.32816927,84.688,84.66,0.1]
[1773065411073,4.05100369,84.679,84.66,0.1]
[1773065412374,11.80944283,84.678,84.66,0.1]
[1773065412554,4.05100369,84.686,84.66,0.1]
[1773065412755,11.45470935,84.68,84.66,0.1]
[1773065412955,4.05100369,84.686,84.66,0.1]
[1773065413162,11.45470935,84.68,84.66,0.1]
[1773065413363,4.05100369,84.679,84.66,0.1]
[1773065413781,11.80818779,84.687,84.66,11.55470935]
[1773065414488,47.19188432,84.761,84.681,4.08553431]
[1773065414659,47.19188432,84.761,84.661,41.34134961]
[1773065414660,11.45470935,84.71,84.671,4.08553431]
[1773065415160,4.05100369,84.709,84.671,4.08553431]
[1773065415979,11.45470935,84.7,84.671,4.08553431]
[1773065416368,41.31841148,84.708,84.671,4.08553431]
[1773065416563,11.45470935,84.7,84.671,4.08553431]
[1773065417080,4.05100369,84.707,84.672,11.81027966]
[1773065417276,4.05100369,84.699,84.661,4.08553431]
[1773065417465,4.05100369,84.699,84.663,4.08553431]
[1773065417778,4.05100369,84.699,84.618,94.54205676]
[1773065417779,11.45470935,84.68,84.65,11.55470935]
[1773065417970,4.05100369,84.679,84.651,11.81320953]
[1773065418365,41.31938704,84.706,84.661,11.81181417]
[1773065418565,11.45470935,84.69,84.661,15.89734848]
[1773065418762,11.45470935,84.7,84.662,4.08553431]
[1773065418964,4.05100369,84.705,84.671,4.08553431]
[1773065419390,4.05100369,84.699,84.661,45.42688392]
[1773065419564,11.48126844,84.68,84.651,4.08553431]
[1773065419764,4.05100369,84.679,84.65,0.1]
[1773065420087,4.05100369,84.697,84.661,4.08553431]
[1773065420468,11.80693303,84.696,84.67,11.48126844]
[1773065420991,11.80693303,84.696,84.665,4.08553431]
[1773065421396,4.05100369,84.708,84.671,4.08553431]
[1773065421682,15.85500996,84.717,84.681,4.08553431]
[1773065421875,4.05100369,84.689,84.652,11.81302728]
[1773065422077,4.05100369,84.689,84.653,4.08553431]
[1773065422276,15.53227213,84.7,84.661,4.08553431]
[1773065422477,4.05100369,84.708,84.673,4.08553431]
[1773065422677,4.05100369,84.708,84.672,11.81027966]
[1773065422882,11.80512106,84.709,84.68,15.56680275]
[1773065423084,11.80512106,84.709,84.681,4.08553431]
[1773065423283,4.05100369,84.737,84.691,4.08553431]
[1773065423463,11.80024544,84.744,84.711,4.08553431]
[1773065424368,11.80024544,84.744,84.712,11.80470299]
[1773065424682,15.85124913,84.744,84.712,11.80470299]
[1773065424991,4.05100369,84.743,84.712,11.80470299]
[1773065425284,11.48126844,84.76,84.73,11.48126844]
[1773065425487,11.48126844,84.76,84.706,11.80547541]
[1773065425488,4.05100369,84.778,84.741,4.08553431]
[1773065425686,41.27991319,84.787,84.731,4.08553431]
[1773065425687,4.05100369,84.769,84.731,4.08553431]
[1773065425989,4.05100369,84.769,84.73,11.48126844]
[1773065426187,4.05100369,84.769,84.74,11.48126844]
[1773065426392,4.05100369,84.773,84.75,11.48126844]
[1773065426692,47.15583536,84.826,84.751,11.7992708]
[1773065426693,4.05100369,84.783,84.751,11.7992708]
[1773065426894,15.84595325,84.783,84.751,11.7992708]
[1773065427079,15.53227213,84.78,84.751,11.7992708]
[1773065427494,4.05100369,84.78,84.751,11.7992708]
[1773065427788,4.05100369,84.78,84.75,11.48126844]
[1773065427992,3.69383402,84.819,84.76,11.48126844]
[1773065427993,11.79428889,84.787,84.76,11.48126844]
[1773065428387,4.05100369,84.786,84.751,15.88480511]
[1773065428585,4.05100369,84.779,84.741,29.50144745]
[1773065428787,4.05100369,84.779,84.723,0.14216157]
[1773065428788,11.79453912,84.785,84.751,4.08553431]
[1773065429295,11.79453912,84.785,84.742,41.30183379]
[1773065429296,4.05100369,84.804,84.77,11.48126844]
[1773065429492,11.79218338,84.802,84.77,11.48126844]
[1773065429794,4.05100369,84.804,84.77,11.48126844]
[1773065429994,4.05100369,84.799,84.761,4.08553431]
[1773065430174,4.05100369,84.799,84.77,11.48126844]
[1773065430378,4.05100369,84.789,84.74,15.56680275]
[1773065430595,4.05100369,84.798,84.761,4.08553431]
[1773065430776,15.84380159,84.798,84.77,11.48126844]
[1773065431091,11.7927979,84.798,84.77,11.48126844]
[1773065431283,4.05100369,84.807,84.77,11.48126844]
[1773065431796,4.05100369,84.807,84.753,0.28432314]
[1773065431797,4.05100369,84.817,84.78,11.48126844]
[1773065432299,4.05100369,84.817,84.79,11.48126844]
[1773065432592,11.78856038,84.828,84.8,23.27361303]
[1773065432798,11.78492026,84.855,84.82,11.48126844]
[1773065432979,11.78492026,84.855,84.821,4.08553431]
[1773065433372,4.19725782,84.854,84.821,4.08553431]
[1773065433895,11.78492026,84.855,84.79,11.48126844]
[1773065433896,11.48126844,84.83,84.79,11.48126844]
[1773065434083,11.48126844,84.81,84.771,41.28770451]
[1773065434286,15.67852626,84.82,84.79,11.48126844]
[1773065434490,4.19725782,84.82,84.791,11.79370452]
[1773065434689,11.78981124,84.819,84.791,11.79370452]
[1773065435000,4.19725782,84.818,84.783,4.35711263]
[1773065435199,4.19725782,84.809,84.772,4.35711263]
[1773065435379,4.19725782,84.809,84.773,11.79620869]
[1773065435777,11.78695978,84.84,84.8,11.48126844]
[1773065435981,11.78690886,84.84,84.81,11.48126844]
[1773065436183,4.19725782,84.829,84.79,15.83838107]
[1773065436585,11.48126844,84.82,84.78,11.48126844]
[1773065436795,4.19725782,84.809,84.77,11.48126844]
[1773065437498,4.19725782,84.809,84.78,11.48126844]
[1773065437797,11.78856038,84.828,84.8,11.48126844]
[1773065438178,11.78856038,84.828,84.791,4.35711263]
[1773065438683,15.9858182,84.828,84.792,11.79356543]
[1773065439688,4.19725782,84.819,84.788,11.794107]
[1773065439882,4.19725782,84.809,84.77,15.83838107]
[1773065440096,4.19725782,84.799,84.77,23.27779153]
[1773065440684,76.62473917,84.829,84.76,11.48126844]
[1773065440685,15.99124053,84.789,84.76,11.48126844]
[1773065441382,4.19725782,84.789,84.76,23.27915025]
[1773065441600,15.99124053,84.789,84.76,23.27915025]
[1773065441798,11.79398271,84.789,84.76,23.27915025]
[1773065443100,4.19725782,84.797,84.76,23.27915025]
[1773065444103,4.19725782,84.797,84.761,4.35711263]
[1773065444803,29.47847806,84.808,84.76,23.27915025]
[1773065444804,15.9886858,84.808,84.78,11.48126844]
[1773065445103,4.19725782,84.807,84.771,4.35711263]
[1773065445302,15.98887633,84.806,84.772,11.79634785]
[1773065445502,11.48126844,84.8,84.772,11.79634785]
[1773065445710,4.19725782,84.799,84.77,11.48126844]
[1773065445912,4.19725782,84.799,84.771,11.796487]
[1773065446809,11.79161851,84.806,84.781,4.42350778]
[1773065447011,11.48126844,84.82,84.79,11.48126844]
[1773065447012,11.79036726,84.815,84.79,11.48126844]
[1773065447219,11.796487,84.876,84.8,11.48126844]
[1773065447220,11.48126844,84.83,84.8,11.48126844]
[1773065447398,11.78842141,84.829,84.8,11.48126844]
[1773065447715,11.78842141,84.829,84.773,57.4]
[1773065447716,4.42259506,84.809,84.771,4.42350778]
[1773065447896,4.42259506,84.799,84.761,4.42350778]
[1773065448094,88.41316058,84.829,84.756,11.79850568]
[1773065448095,15.9038635,84.79,84.756,11.79850568]
[1773065448295,15.9038635,84.79,84.76,11.48126844]
[1773065448511,15.9038635,84.79,84.756,11.79850568]
[1773065449097,15.9038635,84.79,84.76,11.48126844]
[1773065449300,11.79357623,84.792,84.762,4.42350778]
[1773065449495,11.48126844,84.79,84.76,11.48126844]
[1773065449698,4.42259506,84.789,84.683,4.42350778]
[1773065450005,15.9038635,84.73,84.691,4.42350778]
[1773065450208,4.42259506,84.73,84.691,4.42350778]
[1773065450520,4.42259506,84.729,84.691,4.42350778]
[1773065451010,4.42259506,84.729,84.673,0.28432314]
[1773065451011,4.42259506,84.719,84.68,15.90477622]
[1773065451408,11.80386694,84.718,84.69,11.48126844]
[1773065451606,11.80334057,84.722,84.69,11.48126844]
[1773065452801,4.42259506,84.738,84.71,11.48126844]
[1773065453001,11.48126844,84.72,84.69,11.48126844]
[1773065453412,11.80372761,84.719,84.691,11.80763009]
[1773065453699,11.80372761,84.719,84.681,4.42350778]
[1773065453700,11.80372761,84.719,84.685,11.80842513]
[1773065453910,15.9038635,84.71,84.68,11.48126844]
[1773065454116,4.42259506,84.709,84.681,11.80902445]
[1773065454601,41.31304665,84.719,84.651,11.81320953]
[1773065454602,4.42259506,84.689,84.651,11.81320953]
[1773065454818,4.42259506,84.689,84.65,0.1]
[1773065455016,4.42259506,84.679,84.65,11.58126844]
[1773065455517,11.80944283,84.678,84.65,11.58126844]
[1773065459003,4.42259506,84.677,84.65,0.1]
[1773065459516,11.80848182,84.685,84.651,4.42350778]
[1773065459832,4.42259506,84.697,84.66,11.48126844]
[1773065459996,4.42259506,84.689,84.66,11.48126844]
[1773065460201,4.42259506,84.689,84.651,4.42350778]
[1773065460630,4.42259506,84.689,84.66,11.48126844]
[1773065461124,4.42259506,84.687,84.651,11.81320953]
[1773065461523,4.42259506,84.679,84.65,0.1]
[1773065461825,4.42259506,84.669,84.65,0.1]
[1773065462006,4.42259506,84.659,84.616,4.42350778]
[1773065462204,11.48126844,84.64,84.619,11.81767387]
[1773065462523,4.42259506,84.643,84.619,11.81767387]
[1773065463122,11.48126844,84.64,84.61,0.1]
[1773065463315,0.28432314,84.675,84.61,0.1]
[1773065463316,4.06080407,84.663,84.621,3.97956911]
[1773065463518,11.48126844,84.65,84.621,3.97956911]
[1773065463824,4.06080407,84.649,84.62,0.1]
[1773065464427,4.06080407,84.639,84.62,0.1]
[1773065465228,4.06080407,84.637,84.62,0.1]
[1773065465430,4.06080407,84.641,84.62,0.1]
[1773065465727,4.06080407,84.639,84.62,0.1]
[1773065465921,11.48126844,84.64,84.62,0.1]
[1773065466134,4.06080407,84.639,84.62,0.1]
[1773065466910,11.48126844,84.63,84.61,0.1]
[1773065467223,4.06080407,84.637,84.61,0.1]
[1773065467806,11.48126844,84.63,84.61,0.1]
[1773065468010,4.06080407,84.629,84.61,0.1]
[1773065469134,4.06080407,84.619,84.581,1e-08]
[1773065469312,4.06080407,84.599,84.581,1e-08]
[1773065470331,4.06080407,84.589,84.581,1e-08]
[1773065470532,4.06080407,84.599,84.581,1e-08]
[1773065470721,41.36186908,84.619,84.583,4.47956911]
[1773065470722,45.42267315,84.619,84.583,4.47956911]
[1773065471239,4.06080407,84.618,84.59,11.48126844]
[1773065471452,11.81690689,84.625,84.59,11.48126844]
[1773065471741,11.81690689,84.625,84.584,41.37898419]
[1773065471742,11.8154286,84.636,84.61,11.48126844]
[1773065471910,4.06080407,84.649,84.61,15.96083755]
[1773065472111,4.06080407,84.648,84.61,15.96083755]
[1773065473828,4.06080407,84.646,84.611,11.81879424]
[1773065474031,4.06080407,84.619,84.57,0.1]
[1773065474226,4.34512721,84.643,84.581,16.30247531]
[1773065474431,4.06080407,84.615,84.581,16.30247531]
[1773065474625,4.06080407,84.615,84.582,4.47956911]
[1773065474832,4.06080407,84.615,84.59,11.48126844]
[1773065475030,4.06080407,84.626,84.59,11.48126844]
[1773065475536,4.06080407,84.626,84.591,4.47956911]
[1773065475829,11.81624217,84.63,84.6,11.48126844]
[1773065476031,4.06080407,84.629,84.593,4.47956911]
[1773065476212,4.06080407,84.629,84.592,41.37507092]
[1773065476835,4.06080407,84.629,84.592,11.82144883]
[1773065477838,15.87722416,84.628,84.592,16.30101794]
[1773065478045,4.06080407,84.627,84.592,16.30101794]
[1773065479147,4.06080407,84.627,84.6,11.48126844]
[1773065479637,4.06080407,84.627,84.6,11.49528694]
[1773065479842,4.06080407,84.639,84.61,11.49528694]
[1773065480142,4.06080407,84.639,84.602,4.47956911]
[1773065481416,4.06080407,84.639,84.61,11.49528694]
[1773065481621,11.81348864,84.649,84.621,4.47956911]
[1773065481844,11.81348864,84.649,84.621,16.29691152]
[1773065482022,4.06080407,84.639,84.6,15.97485605]
[1773065482338,4.06080407,84.629,84.591,4.47956911]
[1773065482559,4.06080407,84.629,84.6,11.49528694]
[1773065482840,4.06080407,84.647,84.62,11.49528694]
[1773065483448,4.06080407,84.669,84.63,15.97485605]
[1773065483753,4.06080407,84.668,84.64,11.49528694]
[1773065484051,11.81097712,84.667,84.641,11.81460521]
[1773065484345,4.06080407,84.678,84.65,11.49528694]
[1773065484525,29.5202799,84.688,84.66,11.49528694]
[1773065484526,11.80804836,84.688,84.66,11.49528694]
[1773065484853,4.06080407,84.698,84.661,4.47956911]
[1773065485243,4.06080407,84.698,84.67,11.49528694]
[1773065485438,4.06080407,84.698,84.661,4.47956911]
[1773065486126,4.06080407,84.696,84.662,11.81167465]
[1773065486327,4.06080407,84.696,84.66,11.49528694]
[1773065486545,4.06080407,84.689,84.66,11.49528694]
[1773065486946,0.28432314,84.725,84.633,0.28432314]
[1773065486947,11.49528694,84.71,84.67,11.49528694]
[1773065487137,4.06080407,84.712,84.68,11.49528694]
[1773065487445,29.50617027,84.729,84.69,11.49528694]
[1773065487749,4.06080407,84.719,84.682,4.47956911]
[1773065487930,4.06080407,84.717,84.681,11.80902445]
[1773065488248,4.06080407,84.717,84.69,11.49528694]
[1773065489138,11.80261309,84.727,84.691,4.47956911]
[1773065489337,4.06080407,84.726,84.691,4.47956911]
[1773065489542,4.06080407,84.726,84.69,11.49528694]
[1773065489947,11.80372761,84.719,84.69,11.49528694]
[1773065490134,4.06080407,84.718,84.69,11.49528694]
[1773065490446,4.06080407,84.699,84.65,11.49528694]
[1773065490626,4.06080407,84.659,84.63,11.49528694]
[1773065491626,11.49528694,84.67,84.631,4.47956911]
[1773065491827,11.49528694,84.68,84.641,4.47956911]
[1773065492027,15.55609101,84.71,84.67,15.97485605]
[1773065492329,4.06080407,84.705,84.67,15.97485605]
[1773065492749,4.06080407,84.705,84.67,11.49528694]
[1773065493060,11.8056251,84.706,84.65,15.97485605]
[1773065493061,4.06080407,84.689,84.65,15.97485605]
[1773065493234,4.10973315,84.699,84.66,11.49528694]
[1773065493423,4.10973315,84.699,84.67,11.49528694]
[1773065493629,4.10973315,84.705,84.67,11.49528694]
[1773065494132,11.8058179,84.704,84.671,11.81041915]
[1773065494334,4.10973315,84.705,84.68,11.49528694]
[1773065494533,11.8058179,84.704,84.672,4.39783939]
[1773065495341,4.10973315,84.703,84.67,11.49528694]
[1773065495744,4.10973315,84.699,84.67,11.49528694]
[1773065496246,47.21157276,84.725,84.67,11.49528694]
[1773065496247,4.10973315,84.709,84.671,11.81041915]
[1773065496435,11.8054341,84.707,84.68,11.49528694]
[1773065497436,4.10973315,84.708,84.671,11.81041915]
[1773065497639,4.10973315,84.699,84.671,11.81041915]
[1773065498027,4.10973315,84.699,84.667,11.81093201]
[1773065498227,11.49528694,84.69,84.652,4.39783939]
[1773065498429,11.49528694,84.66,84.602,4.82477569]
[1773065498640,4.10973315,84.649,84.603,41.36969137]
[1773065498848,11.49528694,84.65,84.61,11.49528694]
[1773065499131,15.60502009,84.64,84.603,11.81991182]
[1773065499432,0.28432314,84.674,84.59,11.49528694]
[1773065499433,4.10973315,84.629,84.59,11.49528694]
[1773065499845,11.49528694,84.6,84.581,1e-08]
[1773065500158,15.60502009,84.6,84.581,1e-08]
[1773065500338,11.81907362,84.609,84.581,1e-08]
[1773065500534,15.92880677,84.609,84.581,1e-08]
[1773065500733,4.10973315,84.608,84.581,1e-08]
[1773065500954,11.49528694,84.6,84.581,1e-08]
[1773065501584,4.10973315,84.608,84.581,1e-08]
[1773065501932,11.49528694,84.6,84.581,1e-08]
[1773065502534,11.82047069,84.599,84.581,1e-08]
[1773065504258,4.10973315,84.598,84.581,1e-08]
[1773065504553,11.82200784,84.588,84.564,1e-08]
[1773065504729,11.49528694,84.58,84.564,1e-08]
[1773065505230,11.82200784,84.588,84.564,1e-08]
[1773065505753,41.3721379,84.598,84.565,4.39783939]
[1773065505951,41.3721379,84.598,84.564,1e-08]
[1773065505952,4.12168072,84.597,84.564,1e-08]
[1773065506250,11.49528694,84.58,84.564,1e-08]
[1773065506427,11.82186809,84.589,84.564,1e-08]
[1773065506633,11.82075014,84.597,84.564,4.23346414]
[1773065506931,11.81863821,84.613,84.581,4.23346413]
[1773065507736,11.81791635,84.618,84.581,4.23346413]
[1773065507950,11.81791635,84.618,84.59,11.49528694]
[1773065508348,11.81726091,84.622,84.6,11.49528694]
[1773065508548,11.81660491,84.627,84.591,4.23346413]
[1773065508733,4.12168072,84.626,84.592,11.82144883]
[1773065508929,4.12168072,84.626,84.577,29.55858013]
[1773065508930,4.12168072,84.619,84.581,11.82298624]
[1773065509253,11.49528694,84.61,84.58,15.72875107]
[1773065509933,15.61696766,84.61,84.581,11.82298624]
[1773065510334,4.12168072,84.61,84.581,11.82298624]
[1773065510538,11.81767688,84.619,84.582,4.23346413]
[1773065510853,11.81767688,84.619,84.59,11.49528694]
[1773065511057,11.81642009,84.628,84.6,11.49528694]
[1773065511251,4.12168072,84.627,84.591,4.23346413]
[1773065511758,4.12168072,84.619,84.581,11.82298624]
[1773065511933,4.12168072,84.609,84.581,11.82298624]
[1773065512137,4.12168072,84.609,84.575,11.82379231]
[1773065512649,4.12168072,84.609,84.57,11.49528694]
[1773065512650,15.94089403,84.608,84.576,4.23346413]
[1773065514661,15.94089403,84.608,84.577,11.8235454]
[1773065515966,11.49528694,84.6,84.565,16.05868733]
[1773065516146,4.12168072,84.605,84.57,11.49528694]
[1773065516341,15.61696766,84.62,84.581,4.23346413]
[1773065516585,11.49528694,84.61,84.581,4.23346413]
[1773065516952,4.12168072,84.609,84.571,4.23346413]
[1773065517152,11.49528694,84.6,84.571,4.23346413]
[1773065517462,4.12168072,84.609,84.571,4.23346413]
[1773065517846,4.12168072,84.599,84.565,11.8252232]
[1773065518045,11.82061041,84.598,84.57,11.49528694]
[1773065518248,11.82012886,84.602,84.571,4.23346413]
[1773065518647,11.81773231,84.619,84.581,4.23346413]
[1773065518864,11.49528694,84.61,84.581,4.23346413]
[1773065519169,4.12168072,84.614,84.581,4.23346413]
[1773065520559,4.12168072,84.618,84.583,4.23346413]
[1773065520760,4.12168072,84.639,84.575,4.23346413]
[1773065520967,4.12168072,84.639,84.54,11.49528694]
[1773065520968,4.12168072,84.609,84.57,11.49528694]
[1773065521165,11.49528694,84.6,84.57,11.49528694]
[1773065521645,4.12168072,84.609,84.571,4.23346413]
[1773065521848,11.49528694,84.61,84.581,4.23346413]
[1773065522163,4.12168072,84.619,84.581,4.23346413]
[1773065522466,47.25187243,84.653,84.562,0.28432314]
[1773065522467,15.61696766,84.64,84.6,11.49528694]
[1773065522653,4.12168072,84.639,84.61,11.49528694]
[1773065523346,23.31016519,84.64,84.611,4.11944831]
[1773065523570,4.08058295,84.659,84.621,4.11944831]
[1773065523761,11.81289408,84.654,84.621,4.11944831]
[1773065524104,11.49528694,84.66,84.63,11.49528694]
[1773065524263,47.2119908,84.725,84.602,0.28432314]
[1773065524264,4.08058295,84.689,84.65,11.49528694]
[1773065524450,11.80804836,84.688,84.652,4.11944831]
[1773065524647,4.08058295,84.687,84.652,4.11944831]
[1773065525261,4.08058295,84.687,84.66,11.49528694]
[1773065525856,4.08058295,84.687,84.624,94.53515914]
[1773065525857,4.08058295,84.669,84.61,4.11944831]
[1773065526049,4.08058295,84.669,84.64,11.49528694]
[1773065526250,4.08058295,84.682,84.66,11.49528694]
[1773065526461,11.80804836,84.688,84.66,11.49528694]
[1773065526851,11.80804836,84.688,84.651,4.11944831]
[1773065527052,11.80804836,84.688,84.652,4.11944831]
[1773065528070,4.08058295,84.669,84.631,4.11944831]
[1773065528270,11.49528694,84.68,84.641,4.11944831]
[1773065528478,15.57586989,84.68,84.641,4.11944831]
[1773065528662,4.08058295,84.678,84.642,11.81446563]
[1773065528865,4.08058295,84.678,84.65,11.49528694]
[1773065529063,11.80930336,84.679,84.65,11.49528694]
[1773065529373,11.80930336,84.679,84.643,4.11944831]
[1773065529782,4.08058295,84.678,84.643,4.11944831]
[1773065530167,4.08058295,84.678,84.65,11.49528694]
[1773065530354,4.08058295,84.678,84.643,4.11944831]
[1773065530559,4.08058295,84.678,84.65,11.49528694]
[1773065530762,11.80958229,84.677,84.65,11.49528694]
[1773065531056,11.80958229,84.677,84.622,0.28432314]
[1773065531057,4.08058295,84.669,84.628,4.11944831]
[1773065531615,4.08058295,84.669,84.63,11.49528694]
[1773065531959,4.08058295,84.669,84.628,4.11944831]
[1773065532167,4.08058295,84.669,84.63,11.49528694]
[1773065532575,4.08058295,84.669,84.628,4.11944831]
[1773065532576,11.49528694,84.66,84.628,4.11944831]
[1773065532879,4.08058295,84.657,84.628,4.11944831]
[1773065533077,4.08058295,84.657,84.63,11.49528694]
[1773065533477,4.08058295,84.657,84.602,0.28432314]
[1773065533478,4.08058295,84.657,84.618,4.11944831]
[1773065533663,4.08058295,84.657,84.62,11.49528694]
[1773065533862,11.81223274,84.658,84.631,4.11944831]
[1773065534068,4.08058295,84.681,84.65,11.49528694]
[1773065534270,11.80790893,84.689,84.66,11.49528694]
[1773065534465,11.80790893,84.689,84.67,11.49528694]
[1773065534673,11.80790893,84.689,84.661,4.11944831]
[1773065534877,33.59746373,84.698,84.661,4.11944831]
[1773065535076,4.08058295,84.689,84.65,11.49528694]
[1773065535266,4.08058295,84.689,84.646,4.11944831]
[1773065535585,4.08058295,84.689,84.66,11.49528694]
[1773065535882,4.08058295,84.689,84.646,4.11944831]
[1773065536081,15.57586989,84.66,84.625,4.11944831]
[1773065536278,0.28432314,84.694,84.625,4.11944831]
[1773065536279,4.08058295,84.659,84.625,4.11944831]